Cogmind - Beta 11.2 @@@ ROGUE MODE // 2023.01.07 @ 03:41:57 Player: deadnoob Result: Self-destructed Performance ------------- Evolutions (2) 1000 Regions Visited (7) 1400 Robots Destroyed (96) 480 Value Destroyed (2672) 2672 Prototype IDs (3) 60 Alien Tech Used (0) 0 Bonus (153) 153 TOTAL SCORE: 5765 Bonus ------- High Alert Combat Kills 100 Follower Combat Kills 53 Cogmind --------- Core Integrity 236/550 Matter 71/300 Energy 19/100 System Corruption 0% Temperature Cool (0) Movement Flying (1720) Ox21 Location -8/Materials Parts ------- > --- POWER (2) -------- (None) > --- PROPULSION (2) --- Flight Unit > --- UTILITY (5) ------ Huge Storage Unit Advanced Visual Processing Unit Improved Sensor Array Improved Signal Interpreter Hacking Suite > --- WEAPON (2) ------- Great Maul > --- INVENTORY (25) --- Medium Storage Unit Huge Storage Unit High-capacity Battery (250) Improved Signal Interpreter Transmission Jammer Light EM Pulse Cannon EM Pulse Cannon Heavy Particle Cannon Heavy Assault Rifle Heavy Assault Rifle Grenade Launcher Rocket Launcher Mining Laser Plasma Cutter Chainsword Peak State ------------ > --- POWER ------------ Light Ion Engine Enhanced Nuclear Core > --- PROPULSION ------- Light Treads Light Treads > --- UTILITY ---------- Improved Heat Sink Huge Storage Unit Improved Signal Interpreter Light Armor Plating Medium Armor Plating > --- WEAPON ----------- Heavy Assault Rifle Great Maul > --- INVENTORY -------- Light Treads Light Treads Light Treads Light Treads Flight Unit Flight Unit Medium Storage Unit Huge Storage Unit High-capacity Battery Advanced Visual Processing Unit Improved Sensor Array Improved Signal Interpreter Transmission Jammer Hacking Suite Beamcaster Light EM Pulse Cannon EM Pulse Cannon Heavy Particle Cannon Heavy Assault Rifle Heavy Assault Rifle Grenade Launcher Rocket Launcher Mining Laser Plasma Cutter Chainsword [Rating: 28] Favorites ----------- Power Ion Engine Engine Ion Engine Power Core Enhanced Nuclear Core Propulsion Light Treads Treads Light Treads Leg Aluminum Leg Flight Unit Flight Unit Utility Hardened Light Armor Plating Device Cooling System Storage Huge Storage Unit Processor Improved Signal Interpreter Hackware Hacking Suite Protection Hardened Light Armor Plating Weapon Improved Assault Rifle Energy Gun Small Laser Ballistic Gun Improved Assault Rifle Launcher Grenade Launcher Impact Weapon Great Maul Build | -11 -10 -10 -9 -9 -9 -8 -8 ------- Run | Scr Mat Min Mat Min Exi Min Mat Slots Evolved 4 | . . . 2 . . . 2 Power 1 | . . . . . . . 1 Propulsion . | . . . . . . . . Utility 3 | . . . 2 . . . 1 Weapon . | . . . . . . . . Parts Attached 61 | . 15 1 3 4 . 3 35 Power 6 | . 2 . . 1 . . 3 Engine 5 | . 2 . . 1 . . 2 Core 1 | . . . . . . . 1 Reactor . | . . . . . . . . Propulsion 11 | . 3 . . 1 . 1 6 Treads 9 | . 3 . . 1 . 1 4 Leg . | . . . . . . . . Wheel . | . . . . . . . . Hover . | . . . . . . . . Flight 2 | . . . . . . . 2 Utility 20 | . 4 1 2 . . . 13 Device 5 | . 1 . 1 . . . 3 Storage 4 | . 3 . . . . . 1 Processor 2 | . . . . . . . 2 Hackware 1 | . . . . . . . 1 Protection 8 | . . 1 1 . . . 6 Artifact . | . . . . . . . . Weapon 24 | . 6 . 1 2 . 2 13 Energy Gun 2 | . . . . . . . 2 Energy Cannon . | . . . . . . . . Ballistic Gun 14 | . 5 . 1 2 . 1 5 Ballistic Cannon . | . . . . . . . . Launcher 4 | . 1 . . . . 1 2 Special Weapon . | . . . . . . . . Impact Weapon 4 | . . . . . . . 4 Slashing Weapon . | . . . . . . . . Piercing Weapon . | . . . . . . . . Special Melee Weapon . | . . . . . . . . Unidentified Prototypes 3 | . 1 . . . . . 2 Parts Lost 25 | . . . 1 2 . 1 21 Power 3 | . . . . . . . 3 Propulsion 6 | . . . . . . 1 5 Utility 9 | . . . . . . . 9 Weapon 7 | . . . 1 2 . . 4 Highest Loss Streak 6 | . . . 1 1 . 1 6 To Critical Strikes . | . . . . . . . . Average Slot Usage (%) 96 | . 95 100 99 99 100 100 89 Engine 11 | . 14 14 11 11 11 11 10 Treads 22 | . 23 28 22 22 22 22 17 Device 7 | . 10 . 11 11 11 11 8 Storage 11 | . 14 14 11 11 11 11 9 Processor 1 | . . . . . . . 4 Protection 16 | . . 14 22 22 22 22 18 Ballistic Gun 22 | . 24 28 21 21 22 21 16 Naked Turns . | . . . . . . . . Heaviest Build 113 | 12 93 96 103 103 103 103 113 Greatest Support 40 | 20 40 40 40 40 40 40 40 Greatest Overweight (x) 2 | . 2 2 2 2 2 2 2 Average Overweight (x) 1 | . . 2 2 2 2 2 2 Largest Inventory Capacity 25 | . 25 25 25 25 25 25 25 Average Capacity 23 | . 12 25 25 25 25 25 25 Most Carried 25 | . 18 20 25 25 25 25 25 Average Carried 21 | . 9 19 21 24 25 24 23 Final Capacity 25 | 8 25 25 25 25 25 25 25 Final Carried 25 | 6 18 20 25 25 25 24 15 Class Distribution -------------------- 82% | Mutant 17% | Scavenger-Mutant Dominant Class ---------------- Mutant | -10/Materials Mutant | -10/Mines Mutant | -9/Materials Mutant | -9/Mines Mutant | -9/Exiles Mutant | -8/Mines Scavenger-Mutant | -8/Materials Resources | -11 -10 -10 -9 -9 -9 -8 -8 ----------- Run | Scr Mat Min Mat Min Exi Min Mat Matter Collected 2059 | 200 304 32 181 342 . 76 924 Remotely . | . . . . . . . . Salvage Created 3385 | . 477 42 780 382 . 88 1616 Parts 192 | . 37 2 42 22 . 9 80 Haulers Intercepted 6 | . 1 . 2 . . . 3 Recyclers Shooed 2 | . 1 . . . . . 1 Parts Field Recycled . | . . . . . . . . Retrieved Matter . | . . . . . . . . Parts Self-Destructed . | . . . . . . . . Prevented . | . . . . . . . . Kills | -11 -10 -10 -9 -9 -9 -8 -8 ------- Run | Scr Mat Min Mat Min Exi Min Mat Combat Hostiles Destroyed 73 | . 15 1 13 9 . 3 32 Melee 1 | . . . . . . . 1 Guns 62 | . 12 1 13 9 . 1 26 AOE 8 | . 3 . . . . 2 3 Classes Destroyed 12 | . 6 . 2 1 . . 3 Worker 6 | . 2 2 2 . . . . Builder 2 | . 1 . . . . . 1 Hauler 6 | . 1 . 2 . . . 3 Recycler 3 | . . . 1 . . 1 1 Mechanic 1 | . . . . . . . 1 Watcher 5 | . 1 . 2 . . . 2 Swarmer 22 | . 9 1 3 . . 3 6 Grunt 35 | . 6 . 6 8 . . 15 Brawler 1 | . . . . 1 . . . Duelist 3 | . . . . . . . 3 Sentry 11 | . . . 4 . . . 7 Heavy 1 | . . . . . . . 1 Best Kill Streak 7 | . 6 2 7 5 . 4 5 Combat Bots Only 5 | . 5 1 3 5 . 3 5 Max Kills in Single Turn 2 | . 2 2 1 1 . 2 2 Gunslinging . | . . . . . . . . Exploded 2 | . 1 . . . . 2 2 Melee 1 | . . . . . . . 1 Uniques/NPCs Destroyed . | . . . . . . . . Combat | -11 -10 -10 -9 -9 -9 -8 -8 -------- Run | Scr Mat Min Mat Min Exi Min Mat Damage Taken 4395 | . 346 15 612 452 . 74 2896 Core 518 | . 77 . 61 58 . 8 314 Absorbed by Shields . | . . . . . . . . Core Remaining (%) 79 | 100 . 69 . . . 68 . Volleys Fired 265 | . 42 2 50 26 . 6 139 Largest 2 | . 2 2 2 2 . 2 2 Hottest 98 | . 60 46 46 46 . 46 98 Shots Fired 504 | . 79 4 100 50 . 11 260 Gun 494 | . 76 4 100 50 . 10 254 Cannon . | . . . . . . . . Launcher 10 | . 3 . . . . 1 6 Special . | . . . . . . . . Kinetic 465 | . 58 4 100 50 . 10 243 Thermal 29 | . 18 . . . . . 11 Explosive 10 | . 3 . . . . 1 6 Electromagnetic . | . . . . . . . . Robot Hit Streak 17 | . 8 4 11 17 . 4 12 Robot Miss Streak 4 | . 3 . 2 2 . 2 4 Penetration Max . | . . . . . . . . Secondary Targets 2 | . . . 1 . . . 1 Max Gunslinging Chain 1 | . . . 1 . . . 1 Shots Hit Robots 344 | . 42 3 73 36 . 4 186 Core Hits 154 | . 27 2 28 15 . 4 78 Critical Kills 2 | . . . 1 . . . 1 Critical Parts Destroyed 5 | . . . 2 . . . 3 Critical Strikes 9 | . . . 3 . . . 6 Burn 2 | . . . . . . . 2 Destroy 6 | . . . 3 . . . 3 Smash 1 | . . . . . . . 1 Melee Attacks 17 | . . . . . . . 17 Impact 17 | . . . . . . . 17 Slashing . | . . . . . . . . Piercing . | . . . . . . . . Sneak Attacks 1 | . . . . . . . 1 Combat Hostiles . | . . . . . . . . Follow-up Attacks . | . . . . . . . . Damage Inflicted 6657 | . 796 86 1167 576 . 123 3909 Guns 5073 | . 542 61 1167 559 . 82 2662 Cannons . | . . . . . . . . Explosions 970 | . 254 . . . . 41 675 Melee 513 | . . . . . . . 513 Ramming 101 | . . 25 . 17 . . 59 Kinetic 4795 | . 410 61 1167 559 . 82 2516 Thermal 278 | . 132 . . . . . 146 Explosive 970 | . 254 . . . . 41 675 Electromagnetic . | . . . . . . . . Impact 513 | . . . . . . . 513 Slashing . | . . . . . . . . Piercing . | . . . . . . . . Highest Corruption . | . . . . . . . . Average Corruption . | . . . . . . . . Corruption Purged . | . . . . . . . . Corruption Blocked . | . . . . . . . . Overload Shots . | . . . . . . . . Overflow Damage 97 | . 15 . . . . . 82 Projectiles . | . . . . . . . . Explosions 62 | . 15 . . . . . 47 Melee 35 | . . . . . . . 35 Knockbacks 1 | . . 1 . . . . . Impact 1 | . . 1 . . . . . Kinetic . | . . . . . . . . Secondary . | . . . . . . . . Self-Inflicted Damage 72 | . . . . . . . 72 Shots 3 | . . . . . . . 3 Rammed 12 | . . 3 . 2 . . 7 Targets Rammed 13 | . . 4 . 2 . . 7 Kicked . | . . . . . . . . Crushed 1 | . . 1 . . . . . Highest Temperature 398 | . 398 . 7 13 . . 303 Average Temperature 85 | . 83 . 7 6 . . 90 Received Heat Transfer 1935 | . 96 . 291 270 . . 1278 Effects 5 | . 2 . . . . . 3 Shutdowns 1 | . 1 . . . . . . Interference 3 | . 1 . . . . . 2 Matter Decay 1 | . . . . . . . 1 Siege Activations . | . . . . . . . . Robots Corrupted . | . . . . . . . . Combat Hostiles . | . . . . . . . . Parts Fried . | . . . . . . . . Impact Corruptions 3 | . . . . . . . 3 Robots Melted . | . . . . . . . . Combat Hostiles . | . . . . . . . . Parts Melted . | . . . . . . . . Heat Transferred 682 | . 275 . . . . . 407 Parts Sabotaged . | . . . . . . . . Parts Stolen . | . . . . . . . . Parts Stripped . | . . . . . . . . Power Chain Reactions . | . . . . . . . . Missiles Intercepted . | . . . . . . . . Alert | -11 -10 -10 -9 -9 -9 -8 -8 ------- Run | Scr Mat Min Mat Min Exi Min Mat Peak Influence 701 | . 352 131 362 247 . 73 701 Initial 117 | . . 96 1 117 . . 27 Average 145 | . 221 32 161 73 . 71 261 Maximum Alert Level 3 | . 1 . 1 1 . . 3 Low Security (%) 68 | . 21 100 63 97 . 100 39 Level 1 27 | . 78 . 36 2 . . 45 Level 2 4 | . . . . . . . 14 Level 3 . | . . . . . . . . Level 4 . | . . . . . . . . Level 5 . | . . . . . . . . High Security . | . . . . . . . . Max Security . | . . . . . . . . Squads Dispatched 13 | . 4 . 2 . . . 7 Investigation 5 | . 2 . 1 . . . 2 Extermination . | . . . . . . . . Reinforcement 6 | . 2 . 1 . . . 3 Assault 2 | . . . . . . . 2 Garrison . | . . . . . . . . Intercept . | . . . . . . . . Searches Triggered . | . . . . . . . . Construction Impeded 1 | . . . . . . . 1 Haulers Reinforced . | . . . . . . . . Active Scanning Responses . | . . . . . . . . Cargo Convoy Interrupts . | . . . . . . . . Stealth | -11 -10 -10 -9 -9 -9 -8 -8 --------- Run | Scr Mat Min Mat Min Exi Min Mat Distress Signals 10 | . 1 . 4 . . . 5 Communications Jammed . | . . . . . . . . Distress Signals . | . . . . . . . . Times Spotted 122 | . 20 4 22 10 . 3 63 Peak Tracking Total 6 | . 4 3 4 3 . 3 6 Tactical Retreats 13 | . 1 . 3 1 . . 8 Traps | -11 -10 -10 -9 -9 -9 -8 -8 ------- Run | Scr Mat Min Mat Min Exi Min Mat Traps Triggered 3 | . 1 . . . . . 2 Indirectly . | . . . . . . . . Trap Hack Attempts . | . . . . . . . . Triggered . | . . . . . . . . Disarmed . | . . . . . . . . Reprogrammed . | . . . . . . . . Reused . | . . . . . . . . Traps Extracted . | . . . . . . . . Installed . | . . . . . . . . Triggered . | . . . . . . . . Machines | -11 -10 -10 -9 -9 -9 -8 -8 ---------- Run | Scr Mat Min Mat Min Exi Min Mat Machines Disabled 3 | . . . 1 . . . 2 Max in Single Turn 1 | . . . 1 . . . 1 Garrison Access 1 | . . . . . . . 1 Machines Sabotaged . | . . . . . . . . Garrisons Compromised . | . . . . . . . . Overloaded Fab Kills . | . . . . . . . . Hacking | -11 -10 -10 -9 -9 -9 -8 -8 --------- Run | Scr Mat Min Mat Min Exi Min Mat Machines Accessed 11 | . 4 . 1 . 1 . 5 Terminals 6 | . 3 . . . . . 3 Fabricators . | . . . . . . . . Repair Stations . | . . . . . . . . Recycling Units 3 | . 1 . 1 . . . 1 Scanalyzers . | . . . . . . . . Garrison Access 1 | . . . . . . . 1 Total Hacks 37 | . 20 . 1 . 1 . 15 Successful 20 | . 12 . 1 . 1 . 6 Failed 17 | . 8 . . . . . 9 Catastrophic 1 | . . . . . . . 1 Database Lockouts . | . . . . . . . . Manual 25 | . 15 . 1 . . . 9 Terminals 30 | . 19 . . . . . 11 Fabricators . | . . . . . . . . Repair Stations . | . . . . . . . . Recycling Units 4 | . 1 . 1 . . . 2 Scanalyzers . | . . . . . . . . Garrison Access 2 | . . . . . . . 2 Terminal Hacks 12 | . 7 . . . 1 . 4 Record 1 | . . . . . 1 . . Part Schematic 1 | . 1 . . . . . . Robot Analysis 3 | . 2 . . . . . 1 Branch Access Points 1 | . . . . . . . 1 Terminal Index 1 | . 1 . . . . . . Locate Traps 2 | . 2 . . . . . . Zone Layout 3 | . 1 . . . . . 2 Fabricator Hacks . | . . . . . . . . Repair Station Hacks . | . . . . . . . . Recycling Unit Hacks 1 | . . . . . . . 1 Retrieve Components 1 | . . . . . . . 1 Scanalyzer . | . . . . . . . . Garrison Access Hacks . | . . . . . . . . Unauthorized Hacks 7 | . 5 . 1 . . . 1 Terminals 5 | . 4 . . . . . 1 Track 1 | . 1 . . . . . . Botnet 3 | . 2 . . . . . 1 Operators 1 | . 1 . . . . . . Fabricators . | . . . . . . . . Repair Stations . | . . . . . . . . Recycling Units 2 | . 1 . 1 . . . . Tunnel 2 | . 1 . 1 . . . . Scanalyzers . | . . . . . . . . Garrison Access . | . . . . . . . . Data Cores Recovered . | . . . . . . . . Used . | . . . . . . . . Hacking Detections 8 | . 3 . . . . . 5 Full Trace Events 2 | . 1 . . . . . 1 Feedback Events . | . . . . . . . . Feedback Blocked . | . . . . . . . . Robot Schematics Acquired . | . . . . . . . . Robots Built . | . . . . . . . . Authchips . | . . . . . . . . Time . | . . . . . . . . Total Robot Build Rating . | . . . . . . . . Part Schematics Acquired 1 | . 1 . . . . . . Parts Built . | . . . . . . . . Authchips . | . . . . . . . . Time . | . . . . . . . . Total Part Build Rating . | . . . . . . . . Parts Repaired . | . . . . . . . . Time . | . . . . . . . . Parts Recycled . | . . . . . . . . Recycled Matter . | . . . . . . . . Retrieved Matter . | . . . . . . . . Retrieved Components 10 | . . . . . . . 10 Parts Scanalyzed . | . . . . . . . . Part Schematics Acquired . | . . . . . . . . Parts Damaged . | . . . . . . . . Bothacking | -11 -10 -10 -9 -9 -9 -8 -8 ------------ Run | Scr Mat Min Mat Min Exi Min Mat Used RIF Installer . | . . . . . . . . Robots Hacked . | . . . . . . . . Non-combat . | . . . . . . . . Combat . | . . . . . . . . Robot Hacks Applied . | . . . . . . . . Relay Couplers Released 3 | . . . . . . . 3 Machine Destruction 3 | . . . . . . . 3 Fabnet Peak Effective % . | . . . . . . . . Robots Rewired . | . . . . . . . . Allies Hacked . | . . . . . . . . Hacks Repelled . | . . . . . . . . Allies | -11 -10 -10 -9 -9 -9 -8 -8 -------- Run | Scr Mat Min Mat Min Exi Min Mat Total Allies 3 | . . 3 . . . . . Largest Group 3 | . . 3 3 . . . . Highest-Rated Group 40 | . . 40 40 . . . . Highest-Rated Ally 16 | . . 16 16 . . . . Total Orders . | . . . . . . . . Ally Attacks 18 | . . 7 11 . . . . Total Damage 147 | . . 59 88 . . . . Kills 5 | . . 3 2 . . . . Allies Corrupted . | . . . . . . . . Allies Melted . | . . . . . . . . Intel | -11 -10 -10 -9 -9 -9 -8 -8 ------- Run | Scr Mat Min Mat Min Exi Min Mat Robot Analysis Total 3 | . 2 . . . . . 1 Derelict Logs Recovered 3 | . . 2 . 1 . . . Drone Launches . | . . . . . . . . Drone Recoveries . | . . . . . . . . Exploration | -11 -10 -10 -9 -9 -9 -8 -8 ------------- Run | Scr Mat Min Mat Min Exi Min Mat Turns Passed 7745 | . 909 1747 611 1416 615 339 2108 Spaces Moved 2295 | 1 459 538 136 385 193 101 482 Core . | . . . . . . . . Treads 2216 | . 381 538 136 385 193 101 482 Legs 79 | 1 78 . . . . . . Wheels . | . . . . . . . . Hover . | . . . . . . . . Flight . | . . . . . . . . Fastest Speed 120 | 120 120 320 320 320 320 320 320 Average Speed 288 | 120 159 320 320 320 320 320 322 Slowest Speed 325 | 120 320 320 320 320 320 320 325 Overloaded Moves . | . . . . . . . . Propulsion Burnouts . | . . . . . . . . Robots Hopped . | . . . . . . . . Cave-ins Triggered . | . . . . . . . . Exploration Rate (%) 50 | 2 70 98 22 82 53 32 47 Regions Visited 7 Branch Regions 4 Pre-discovered Areas 4 | . 1 1 1 . 1 . . Known Exits Taken 1 | . . . . . . 1 . Unknown Exits Taken 6 | 1 1 1 1 1 1 . . Scrap Searched 2 | . . . . 2 . . . Spaces Dug 16 | . . . . . . 9 7 Terrain Destroyed 82 | . 19 . . . . 9 54 Melee . | . . . . . . . . Projectile . | . . . . . . . . AOE 82 | . 19 . . . . 9 54 Terrain Rammed . | . . . . . . . . Walls Destroyed . | . . . . . . . . Machines Disabled . | . . . . . . . . Actions | -11 -10 -10 -9 -9 -9 -8 -8 --------- Run | Scr Mat Min Mat Min Exi Min Mat Total 2915 | . 567 553 216 523 192 109 755 Wait 176 | . 16 1 14 103 . . 42 Move 2288 | . 458 537 135 384 192 100 482 Hop . | . . . . . . . . Pick Up 54 | . 19 5 11 2 . . 17 Fast Attach 14 | . 8 . . . . . 6 Attach 25 | . 1 . 3 2 . 1 18 Detach 6 | . 4 . . . . . 2 Swap 22 | . 6 1 . 2 . 2 11 Drop 35 | . 13 3 3 2 . . 14 Fire 265 | . 42 2 50 26 . 6 139 Melee 17 | . . . . . . . 17 Ram . | . . . . . . . . Kick . | . . . . . . . . Crush 13 | . . 4 . 2 . . 7 Escape Stasis . | . . . . . . . . Rewire . | . . . . . . . . Trap . | . . . . . . . . Miscellaneous . | . . . . . . . . Route ------- -11/Scrapyard -10/Materials (discovered 3 exits: *Mat x2 / [*Min]) -10/Mines (discovered 2 exits: *Mat x2) -9/Materials (discovered 2 exits: Mat / [*Min]) -9/Mines (discovered 3 exits: *Mat x2 / *Exi) -9/Exiles -8/Mines (discovered 2 exits: *Mat x2) -8/Materials (discovered 1 exit: [*Fac]) History --------- Turn | Location | Event 1 | -11/Scrapyard | Discovered new exit (range 0) 1 | -11/Scrapyard | Entered Materials 307 | -10/Materials | Build established: Mutant 585 | -10/Materials | Discovered new exit (range 3) 815 | -10/Materials | Discovered new exit (range 6) 834 | -10/Materials | Discovered new exit (range 16) 910 | -10/Materials | Entered Mines 938 | -10/Mines | Met a Derelict bent on vengeance 1074 | -10/Mines | Discovered new exit (range 14) 1142 | -10/Mines | Received a Rocket Launcher from a helpful Derelict 1337 | -10/Mines | Learned location of 1 exit from Materials 1488 | -10/Mines | Discovered new exit (range 6) 2262 | -10/Mines | Assisted by bots powering up and referring to "LRC-V3" 2657 | -10/Mines | Entered Materials 2657 | -9/Materials | Accompanied by 3 allies 2657 | -9/Materials | Evolved 2 slots: Utility x2 2658 | -9/Materials | Identified exit to Materials 3193 | -9/Materials | Discovered new exit (range 15) 3268 | -9/Materials | Entered Mines 3515 | -9/Mines | Discovered exit to Materials (range 10) 4172 | -9/Mines | Discovered exit to Materials (range 6) 4205 | -9/Mines | Assembled infested the area 4518 | -9/Mines | A weapon hastily lodged in a ceiling crevice suddenly fell to the ground 4671 | -9/Mines | Discovered new exit (range 5) 4684 | -9/Mines | Entered Exiles 4761 | -9/Exiles | Met 8R-AWN 4819 | -9/Exiles | Met EX-HEX 4940 | -9/Exiles | Met EX-DEC 4960 | -9/Exiles | Learned location of Zion (-7) 5094 | -9/Exiles | Met EX-BIN 5260 | -9/Exiles | Discovered new exit (range 14) 5299 | -9/Exiles | Entered Mines 5379 | -8/Mines | Discovered exit to Materials (range 6) 5466 | -8/Mines | Discovered exit to Materials (range 11) 5638 | -8/Mines | Entered Materials 5638 | -8/Materials | Evolved 2 slots: Power x1, Utility x1 6180 | -8/Materials | Lost 3 parts (2u1w) 6625 | -8/Materials | Build established: Scavenger-Mutant 6785 | -8/Materials | Lost 3 parts (3u) 7224 | -8/Materials | Discovered new exit (range 16) 7638 | -8/Materials | First assault squad dispatched 7731 | -8/Materials | Core integrity fell below 50% 7746 | -8/Materials | Self-destructed Last Messages --------------- 07711_ M-28 Smith destroyed. 07719_ R-06 Scavenger collects Lgt. Treads. 07720_ U-05 Engineer suffers critical hit (Burn). 07723_ C-30 ARC bursts open, deploying its payload. 07723_ G-50 Soldier unfolds itself. 07723_ B-36 Bruiser unfolds itself. 07723_ L-31 Rogue unfolds itself. 07723_ M-28 Smith unfolds itself. 07724_ Lgt. Armor Plating destroyed. 07724_ R-06 Scavenger collects Heat Sink. 07730_ Med. Armor Plating severed. 07731_ Lgt. Treads destroyed. 07735_ Beamcaster destroyed. 07735_ Imp. Heat Sink destroyed. 07737_ Lgt. Treads destroyed. 07739_ Dropped Enh. Nuclear Core. 07743_ Critical hit (Burn: +37). 07744_ Dropped Lgt. Treads. 07745_ Flight Unit destroyed. 07746_ M-28 Smith repairs Imp. Ion Engine. Map ----- +----------------------------------------------------+ | ???????????????# ## ??# """ # | | ???????????????# # = # ? ??# """"" !/ | | ???????????????######## # %! ? ??# """"" # = | | ?????????????????# #????# """ #!%|!! | | ?????????????????# """! % # ##???# ##|!=# | | ?????????????????# " ! = ????# ##=!!# | | ?????????????????# """! # ?????########### # | | ?????????????????# # ##???????????????# # | | ?????????????????# !*! # ####+###?????????# # | | ???????????????#####+### # ?????????# # | | ???????????????# [%= #% !#!""""???????????# # | | ???????????????#[ + %+|""""???????????# | | ???????????????# # # """"???????????+ [[ | | ???????????????#"" "" # # ???????????????# [% | | ???????????????#"" """# #?"??????????????## ## | | ???????????????#"T """# ###?"???????????????# #? | | ???????????????#"" """# #???????????????????#[#? | | ???????????????#"" """# #???????????????????# #? | | ???????????????# # #????g????????????### ## | | ???????????????#######??# #?????????????????# *% | | ????????????????????????# #????l????""" ##### [! | | ????????????????????????#=#?????????""" + != | | ????????????????????????#g#?????????""" ##### | | ????????????????????????#*#?????????????????# | | ????????????????????????#%#?????????????????###+## | | ????????????????????????#@#????g????????????# = [ | | ????????????????????????#l#?????????????????# | | ????????????????????#####m#????k????????????# | | ????????############# =%##### ##???a??????# | | ???????#!! = = b #??????????# | | ??????#! ! k #?????# | | ??????#! *% u #####??????#+#### | | ??????#! ####### #### #??????????# #??? | | ??????#! ????????#######???? #????????### #### | | ?????????!?????????????????????? #????????# # | | ?????????????????????????????????#?######## | # | | ?????????????????????????????????k + | | ??????????????????????????o????? ### # | | ????????????????????????????????? ????# # | | ??????????? ????????????????????#???????## ## | | ??????????# ?????????????????????????????# **### | | ??????????# ?????????????????????????????# / | | ??????????# ?????????????????????????????# ! *% | | ??????????# #????????????????????????????# %![= | | ??????????# #????????????????????????????## ###/ | | ??????????# #?????????????????????????????# ## % | | ??????????# +????? #????????# """ ## ## | | ??????????# #????? #????????# #= # " | | ??????????# #????? #????????########### + " | | ??????????# #????? #??????????????????# # " | +----------------------------------------------------+ Best States ------------- Heat Dissipation 53 Energy Generation 22 Energy Capacity 325 Matter Stores 300 Matter Capacity 300 Sight Range 16 Robot Scan Range 15 Terrain Scan Density 10 Armor Coverage 450 Evasion (%) 55 Recoil Reduction 2 Item Schematics ----------------- Cargo Storage Unit | -10/Materials | Hacked Robot Schematics ------------------ None Fabricated ------------ Nothing Alien Tech Used ----------------- None Achievements -------------- None Challenges ------------ None Game ------ Seed DisruptionLobotomyCompactor Manual? 0 Play Time 00:31:08 Cumulative 175.5 hours Start 2023.01.07 @ 02:51:15 End 2023.01.07 @ 03:41:57 Sessions 5 Manual Loads 0 Difficulty Rogue Special Mode None Game No. 240 Rogue 240 Adventurer 0 Explorer 0 Win Type - Total 3 Types 2/0/0/1/0/0/0/0/0 Lore% 78 Gallery% 80 Achievement% 66 Wizard Run 0 Options --------- ASCII 0 Keyboard 0 Movement Numpad Keybinds 0 Fullscreen 2 Font 18/SmallcapsGlow Map View 76x50 Tactical HUD 1 Map Filters NONE Filters NONE Steam 1 RUN: bc410788-2cdd-402a-a804-1ebd6b0029cd